Cogmind - Beta 14 @@@ ROGUE MODE // 2024.10.06 @ 20:58:40 Player: Spoodle Result: Escaped! Performance ------------- Evolutions (9) 4500 Regions Visited (29) 5800 Robots Destroyed (504) 2520 Value Destroyed (21260) 21260 Prototype IDs (69) 1380 Alien Tech Used (7) 1400 Bonus (16850) 16850 TOTAL SCORE: 53710 Bonus ------- High Alert Combat Kills 5562 Follower Combat Kills 1799 Network Hubs Disabled 200 Met Data Miner 300 Met Zhirov 300 Met Warlord at Base 500 MAIN.C Attacked Warlord 500 Built Enhanced Grunts 300 A7 Reached Mainframe 300 Met R17 at Cetus 500 Met R17 at Research 2000 Met Warlord at Research 2000 Win 3000 Friendly Fire -411 Cogmind --------- Core Integrity 1006/1600 Matter 250/300 Energy 1112/1130 System Corruption 0% Temperature Cool (-190) Movement Walking (116) Location To Epsilon Eridani Parts ------- > --- POWER (3) -------- Light Quantum Reactor Light Quantum Reactor Reinforced Quantum Reactor > --- PROPULSION (6) --- Advanced Myomer Leg Advanced Myomer Leg Biometal Leg Biometal Leg Centrium Leg Centrium Leg > --- UTILITY (12) ----- Advanced Cryofiber Web Advanced Heat Sink Advanced Heat Sink High-capacity Storage Unit Experimental Energy Well Long-range Sensor Array Experimental Signal Interpreter Experimental Core Analyzer Heavy Armor Plating Graphene Brace System Purifier > --- WEAPON (4) ------- Experimental Neutron Missile Launcher Experimental Neutron Missile Launcher Sigix Broadsword > --- INVENTORY (20) --- Light Quantum Reactor Light Quantum Reactor Centrium Heavy Treads Biometal Leg Centrium Leg Improved Medium Armor Plating Centrium Medium Armor Plating Advanced Force Field Antimissile System Gamma Rifle Enhanced Nova Cannon Point Singularity Launcher Peak State ------------ > --- POWER ------------ Particle Reactor Quantum Reactor Reinforced Quantum Reactor > --- PROPULSION ------- Advanced Myomer Leg Advanced Myomer Leg Advanced Myomer Leg Biometal Leg Biometal Leg Enhanced Biometal Leg > --- UTILITY ---------- Coolant Network High-capacity Storage Unit Long-range Sensor Array Experimental Signal Interpreter Terrain Scanner Terrain Scan Processor Experimental Core Analyzer Improved Medium Armor Plating Improved Remote Shield Phase Redirector Ghost Barrier > --- WEAPON ----------- Enhanced Nova Cannon Enhanced Nova Cannon Sigix Broadsword > --- INVENTORY -------- Biometal Leg Centrium Leg Centrium Leg Advanced Cryofiber Web Experimental Energy Well Tactical Coordination Suite Experimental Weapon Shielding Centrium Medium Armor Plating Graphene Brace Antimissile System System Purifier Dimensional Node Initializer Transdimensional Reconstructor Subatomic Replicator Terrabomb Enhanced Quantum Rifle Enhanced Nova Cannon Point Singularity Launcher Experimental Neutron Missile Launcher [Rating: 220] Favorites ----------- Power Quantum Reactor Engine Heavy Ion Engine Power Core Neutrino Core Reactor Quantum Reactor Propulsion Armored Treads Treads Armored Treads Leg Myomer Leg Wheel Wheel Utility High-capacity Storage Unit Device Advanced Heat Sink Storage High-capacity Storage Unit Processor Advanced Targeting Computer Hackware Ghost Barrier Protection Centrium Medium Armor Plating Artifact Phase Redirector Weapon Wave Gun Energy Gun Wave Gun Energy Cannon Enhanced Nova Cannon Ballistic Gun Improved Assault Rifle Ballistic Cannon Light Cannon Launcher Experimental Neutron Missile Launcher Special Weapon Mining Laser Slashing Weapon Makeshift Axe Piercing Weapon Makeshift Spear Build | -11 -10 -10 -9 -9 -8 -7 -7 -7 -7 -6 -6 -6 -6 -6 -6 -5 -5 -5 -5 -4 -4 -4 -4 -4 -3 -3 -2 -2 -1 ------- Run | Yrd Mat Min Mat Min Mat Fac Low Low Dat Pro Fac Ext Cet Arc Hub Fac Upp Upp War Pro Fac Upp Upp Zhi Pro Res Res Qua Acc Slots Evolved 18 | . . . 2 . 2 2 . . . . 2 . . . . 2 . . . . 2 . . . . 2 2 . 2 Power 2 | . . . . . . . . . . . 1 . . . . . . . . . . . . . . . . . 1 Propulsion 4 | . . . 1 . . 1 . . . . . . . . . . . . . . . . . . . 2 . . . Utility 10 | . . . . . 2 1 . . . . 1 . . . . 2 . . . . 2 . . . . . 1 . 1 Weapon 2 | . . . 1 . . . . . . . . . . . . . . . . . . . . . . . 1 . . Parts Attached 749 | 7 19 26 37 8 54 21 20 10 4 28 12 42 10 9 13 39 13 24 25 32 66 9 16 10 19 40 41 31 64 Power 38 | 1 2 2 3 . 3 . 1 . . 2 1 2 1 . . 3 . 1 1 3 2 . . 1 . 1 1 3 4 Engine 14 | 1 2 . 3 . 3 . 1 . . 2 . 2 . . . . . . . . . . . . . . . . . Core 8 | . . 2 . . . . . . . . 1 . . . . 3 . 1 . 1 . . . . . . . . . Reactor 16 | . . . . . . . . . . . . . 1 . . . . . 1 2 2 . . 1 . 1 1 3 4 Propulsion 85 | 2 6 1 6 . 4 2 . 1 1 2 1 4 2 . 1 1 2 1 1 8 9 . . 3 1 9 5 5 7 Treads 29 | . 2 . 6 . 4 2 . 1 1 2 1 4 2 . 1 1 . . 1 . 1 . . . . . . . . Leg 50 | 2 4 1 . . . . . . . . . . . . . . . . . 6 7 . . 3 1 9 5 5 7 Wheel 6 | . . . . . . . . . . . . . . . . . 2 1 . 2 1 . . . . . . . . Hover . | . . . . . . . . . . . . . . . . . . . . . . . . . . . . . . Flight . | . . . . . . . . . . . . . . . . . . . . . . . . . . . . . . Utility 358 | 2 3 13 12 4 29 13 12 4 . 16 6 20 3 4 7 21 5 7 18 13 26 7 8 6 14 21 21 13 30 Device 257 | 1 1 8 6 2 13 9 8 4 . 12 5 18 . 4 3 17 4 7 12 10 14 7 6 4 12 17 19 10 24 Storage 7 | 1 1 . . . 1 . . . . . . . . . . . . . . 1 . . . 1 . 1 . . 1 Processor 12 | . . . . . 1 . . . . . 1 . . . . 3 1 . . . 2 . . . . 1 1 1 1 Hackware 5 | . . . . . 1 . . . . . . . . . 2 . . . . . 2 . . . . . . . . Protection 75 | . 1 5 6 2 13 4 4 . . 4 . 2 3 . 2 1 . . 6 2 8 . 2 1 2 2 1 1 3 Artifact 2 | . . . . . . . . . . . . . . . . . . . . . . . . . . . . 1 1 Weapon 268 | 2 8 10 16 4 18 6 7 5 3 8 4 16 4 5 5 14 6 15 5 8 29 2 8 . 4 9 14 10 23 Energy Gun 90 | . . . 1 . 5 5 5 3 1 2 2 6 3 1 1 6 . 8 2 1 15 2 4 . 2 5 6 1 3 Energy Cannon 34 | . . . 2 . . . . . . . . . . . . . . . . . 8 . 2 . 1 4 4 3 10 Ballistic Gun 56 | 2 2 2 11 2 11 . 1 . 1 3 . 4 1 2 2 2 3 1 2 2 . . . . . . . 2 . Ballistic Cannon 9 | . 5 4 . . . . . . . . . . . . . . . . . . . . . . . . . . . Launcher 49 | . . 2 2 2 . . . 1 . 1 . 4 . . . 3 2 5 . 2 5 . 2 . 1 . 4 3 10 Special Weapon 7 | . 1 2 . . . . . . 1 . . 1 . . . . . . . 1 1 . . . . . . . . Impact Weapon . | . . . . . . . . . . . . . . . . . . . . . . . . . . . . . . Slashing Weapon 22 | . . . . . 1 1 1 1 . 2 2 1 . 2 2 3 1 1 1 2 . . . . . . . 1 . Piercing Weapon 1 | . . . . . 1 . . . . . . . . . . . . . . . . . . . . . . . . Special Melee Weapon . | . . . . . . . . . . . . . . . . . . . . . . . . . . . . . . Unidentified Prototypes 42 | . . 1 4 . 2 . . . 1 . . . 3 . 1 1 . . 8 2 1 . . 5 . 3 3 3 4 Corrupted Parts 7 | . . . . . . . . . . . . . 2 . 3 1 . . . 1 . . . . . . . . . System Corruption 25 | . . . . . . . . . . . . . 9 . 7 7 . . . 2 . . . . . . . . . Parts Lost 65 | . . 2 1 . . . 1 . . 1 . 12 1 . 6 2 . 3 . 7 10 . 1 . 1 . 4 2 11 Power 7 | . . 1 . . . . 1 . . . . 1 . . 1 . . 1 . . 1 . . . . . . . 1 Propulsion 15 | . . . . . . . . . . . . 4 1 . 1 1 . 1 . 2 4 . . . . . . . 1 Utility 29 | . . 1 . . . . . . . 1 . 4 . . 2 1 . 1 . 2 3 . 1 . 1 . 3 1 8 Weapon 14 | . . . 1 . . . . . . . . 3 . . 2 . . . . 3 2 . . . . . 1 1 1 Highest Loss Streak 8 | . . 1 1 . . . 1 . . 1 . 8 1 . 6 2 . 2 . 5 3 . 1 . 1 . 1 1 3 To Critical Strikes 3 | . . . . . . . . . . . . . 1 . . . . . . . 1 . . . . . . . 1 Average Slot Usage (%) 95 | . 100 99 99 100 98 100 100 100 100 100 98 98 98 91 92 84 92 91 84 76 83 98 99 95 99 100 95 93 90 Engine 4 | . 14 3 8 11 9 7 7 7 7 7 6 8 11 6 6 . . . . . . . . . . . . . . Core 1 | . . 9 2 . . . . . . . 6 3 . . . 4 5 10 4 1 . . . . . . . . . Reactor 3 | . . . . . . . . . . . . . 1 6 6 5 5 . 2 5 6 10 10 10 10 9 8 7 11 Treads 13 | . . . 33 33 26 30 30 30 30 30 25 25 25 20 20 11 5 5 10 7 . 5 5 2 . . . . . Leg 9 | . 27 28 . . . . . . . . . . . . . . . . . 5 20 15 15 17 21 28 26 26 23 Device 16 | . 13 13 6 10 9 13 14 15 15 14 13 15 20 18 14 16 18 17 18 16 15 22 25 20 21 21 22 16 20 Storage 6 | . 14 14 11 11 9 7 7 7 7 7 6 6 6 6 6 5 5 5 5 5 5 5 5 5 5 4 4 4 4 Processor 8 | . . . . . 6 7 7 7 7 7 10 12 6 6 6 10 15 17 15 11 10 10 10 10 10 9 8 12 11 Hackware 3 | . . . . . 8 7 4 . . . . . . . 6 3 . . . . 9 10 9 5 5 4 4 4 1 Protection 3 | . . . 4 . 1 1 2 7 7 7 6 3 5 6 4 5 5 5 5 4 3 2 . 6 9 5 4 4 4 Energy Gun 8 | . . . . . 4 22 20 13 15 14 9 11 14 14 9 4 4 13 15 6 7 14 14 15 14 10 5 1 1 Energy Cannon 1 | . . . . . . . . . . . . . . . . . . . . . 1 . . . . 3 11 10 6 Ballistic Gun 5 | . 2 . 32 32 22 . 2 7 7 5 6 5 5 2 5 9 5 . 1 3 . . . . . . . 1 . Ballistic Cannon 2 | . 25 24 . . . . . . . . . . . . . . . . . . . . . . . . . . . Peak Build Rating 220 | 7 14 20 28 29 38 47 52 52 60 60 67 76 97 99 104 121 121 107 144 145 149 130 136 133 140 166 200 198 220 Average Rating 92 | 6 10 14 23 27 34 43 47 50 52 56 64 66 82 96 97 115 107 103 125 130 133 128 131 127 137 155 182 191 211 On Entrance 86 | . 7 12 15 27 27 36 47 50 52 53 57 66 73 97 99 93 119 107 104 144 114 123 130 125 132 140 161 185 197 Naked Turns . | . . . . . . . . . . . . . . . . . . . . . . . . . . . . . . Heaviest Build 182 | 13 54 53 60 58 60 66 68 73 69 82 95 96 99 100 100 105 107 102 116 121 128 111 128 112 110 133 170 164 182 Greatest Support 178 | 20 40 26 66 60 62 82 82 84 92 100 100 110 140 140 160 160 160 26 160 160 98 70 70 110 110 160 174 176 178 Greatest Overweight (x) 10 | . 3 2 . . . . . . . . . 1 . . . . 4 10 5 1 8 1 1 1 1 . 1 1 1 Average Overweight (x) . | . . 1 . . . . . . . . . . . . . . 2 4 . . . 1 1 . . . . . . Largest Inventory Capacity 20 | 8 20 20 20 20 20 20 20 20 20 20 20 20 20 20 20 20 20 20 20 20 20 20 20 20 20 20 20 20 20 Average Capacity 19 | 7 17 20 20 20 20 20 20 20 20 20 20 20 20 20 20 20 20 20 20 20 20 20 20 20 20 20 20 20 20 Most Carried 20 | 6 20 20 20 20 20 20 20 20 20 20 20 20 20 20 20 20 20 20 20 20 20 19 20 20 20 20 20 20 20 Average Carried 19 | 4 16 19 19 20 19 19 19 19 19 19 19 17 19 19 19 16 19 19 19 18 18 17 19 19 19 19 19 19 17 Final Capacity 20 | 8 20 20 20 20 20 20 20 20 20 20 20 20 20 20 20 20 20 20 20 20 20 20 20 20 20 20 20 20 20 Final Carried 20 | 6 20 20 20 20 20 20 20 20 20 20 20 18 20 20 15 20 20 20 20 18 19 18 20 20 20 20 19 19 20 Class Distribution -------------------- 27% | Gunner 16% | Scavenger-Tank 14% | Mutant 13% | Scavenger-Skirmisher 10% | Scavenger-Mutant 4% | Tank Dominant Class ---------------- Mutant | -10/Materials Mutant | -10/Mines Gunner | -9/Materials Gunner | -9/Mines Gunner | -8/Materials Gunner | -7/Factory Gunner | -7/Lower Caves Gunner | -7/Lower Caves Gunner | -7/Data Miner Gunner | -6/Proximity Caves Mutant | -6/Factory Gunner | -6/Extension Commander-Gunner | -6/Cetus Scavenger-Gunner | -6/Archives Scavenger-Mutant | -6/Hub_04(d) Scavenger-Mutant | -5/Factory Scavenger-Mutant | -5/Upper Caves Scavenger-Tank | -5/Upper Caves Scavenger-Tank | -5/Warlord Scavenger-Mutant | -4/Proximity Caves Scavenger-Tank | -4/Factory Scavenger-Skirmisher | -4/Upper Caves Scavenger-Skirmisher | -4/Upper Caves Scavenger-Tank | -4/Zhirov Scavenger-Tank | -3/Proximity Caves Scavenger-Skirmisher | -3/Research Hacker-Skirmisher | -2/Research Scavenger-Tank | -2/Quarantine Scavenger-Mutant | -1/Access Resources | -11 -10 -10 -9 -9 -8 -7 -7 -7 -7 -6 -6 -6 -6 -6 -6 -5 -5 -5 -5 -4 -4 -4 -4 -4 -3 -3 -2 -2 -1 ----------- Run | Yrd Mat Min Mat Min Mat Fac Low Low Dat Pro Fac Ext Cet Arc Hub Fac Upp Upp War Pro Fac Upp Upp Zhi Pro Res Res Qua Acc Matter Collected 13161 | 330 417 537 1330 49 1207 284 185 156 . 435 111 784 135 97 142 619 303 484 246 543 1050 93 143 . 457 362 740 363 1559 Remotely . | . . . . . . . . . . . . . . . . . . . . . . . . . . . . . . Salvage Created 20484 | 208 545 313 1407 23 1622 561 481 199 . 411 207 1084 375 112 403 1189 208 664 . 766 1977 140 182 . 318 680 1257 1156 3996 Parts 1037 | 12 20 15 107 7 85 18 17 14 . 26 8 55 13 14 32 71 13 22 . 21 105 5 8 . 10 37 40 67 195 Haulers Intercepted 21 | . 2 . 6 . 4 1 . . . . 1 . . . . . . . . . . . . . . 4 1 . 2 Recyclers Shooed 9 | . 2 1 1 . 2 1 . . . . . 2 . . . . . . . . . . . . . . . . . Parts Field Recycled . | . . . . . . . . . . . . . . . . . . . . . . . . . . . . . . Retrieved Matter . | . . . . . . . . . . . . . . . . . . . . . . . . . . . . . . Parts Self-Destructed 122 | . . . . . . . 16 16 . 26 . . . . . . 9 15 . 18 . 8 4 . 10 . . . . Prevented . | . . . . . . . . . . . . . . . . . . . . . . . . . . . . . . Kills | -11 -10 -10 -9 -9 -8 -7 -7 -7 -7 -6 -6 -6 -6 -6 -6 -5 -5 -5 -5 -4 -4 -4 -4 -4 -3 -3 -2 -2 -1 ------- Run | Yrd Mat Min Mat Min Mat Fac Low Low Dat Pro Fac Ext Cet Arc Hub Fac Upp Upp War Pro Fac Upp Upp Zhi Pro Res Res Qua Acc Combat Hostiles Destroyed 356 | . 6 11 27 6 21 8 10 8 . 11 1 23 5 . 5 21 8 23 . 10 31 2 5 . 6 2 23 20 63 Melee 2 | . . . . . . . . . . . . . . . . . . . . 1 . . . . . . . . 1 Guns 142 | . 2 1 22 . 20 5 9 5 . 11 1 11 2 . 5 14 . 4 . 3 11 2 . . 5 2 3 . 4 Cannons 77 | . 4 7 1 . . . . . . . . . . . . . . . . . 5 . 1 . . . 13 11 35 AOE 116 | . . 3 4 6 . . . 3 . . . 11 . . . 7 8 19 . 6 13 . 4 . 1 . 7 6 18 Classes Destroyed 25 | 2 4 3 2 . 1 . 2 . . . . 1 . . 1 2 . 2 . 1 . . . . . . 3 1 . Worker 30 | . 1 . 3 . 2 . . . . . . 2 . . 1 3 . . . . 10 . . . . 1 . 1 6 Builder 38 | . . . 1 . 3 . . . . . . 3 . . 2 4 . . . . 8 . . . . 5 . 1 11 Tunneler 14 | 5 . . . . 2 . . . . . 1 . . . 1 1 . . . . 3 . . . . . . . 1 Hauler 21 | . 2 . 6 . 4 1 . . . . 1 . . . . . . . . . . . . . . 4 1 . 2 Recycler 19 | 1 3 2 2 . 3 . . . . . . 2 . . . 1 . . . . 3 . . . . . 1 . 1 Minesweeper 1 | . . . . . . . . . . . . . . . . . . 1 . . . . . . . . . . . Mechanic 7 | . . . . . . . . . . . . . . . . 1 . . . . 2 . . . . . . . 4 Operator 6 | . . . 1 . . . . . . . . 1 . 3 . . . . . . . . . . . . 1 . . Watcher 24 | . 3 . 3 . 2 2 . . . . 1 1 1 . 1 . . . . . 3 . . . . 2 . 1 4 Swarmer 80 | . . 3 12 6 . . . 6 . 4 . 6 . . . 5 5 11 . 6 9 . 2 . . . 5 . . Saboteur 3 | . . . . . . . . . . . . . . . . 1 . 1 . . . . . . . . . . 1 Grunt 125 | . 6 2 8 . 15 4 5 2 . . . 6 . . 1 10 3 3 . . 8 1 2 . 3 2 6 8 30 Brawler 7 | . . . . . . . . . . . . . . . . . . 3 . . 1 . . . . . . . 3 Duelist 15 | . . . . . . . 1 . . . . . . . . 1 . 2 . . . 1 . . 1 . 1 3 5 Protector 2 | . . . . . . . . . . . . . . . . . . . . . . . . . . . . 1 1 Sentry 37 | . . 1 7 . 4 2 2 . . 1 1 5 . . 1 1 . 2 . 2 1 . 1 . . . . 3 3 Demolisher 3 | . . . . . . . . . . . . . . . . . . . . 2 . . . . . . 1 . . Specialist 4 | . . . . . . . . . . . . . . . 2 . . . . . . . . . . . . . 2 Hunter 28 | . . . . . 2 2 . . . 4 . 3 . . 1 1 . . . . 4 . . . . . 3 2 6 Programmer 33 | . . . . . . . 2 . . 2 . 1 . . . 2 . 1 . . 7 . . . 2 . . 4 12 Behemoth 3 | . . . . . . . . . . . . 2 . . . . . . . . 1 . . . . . . . . Cetus Guard 5 | . . . . . . . . . . . . . 5 . . . . . . . . . . . . . . . . Striker 4 | . . . . . . . . . . . . . . . . . . . . . . . . . . . 4 . . Executioner 3 | . . . . . . . . . . . . . . . . . . . . . . . . . . . 3 . . Assembled 4 | . . 4 . . . . . . . . . . . . . . . . . . . . . . . . . . . Fireman 1 | . . . . . . . . . . . . . . . . . . . . . . . . . . . 1 . . Best Kill Streak 15 | 4 2 4 4 3 5 3 4 6 . 4 1 6 3 1 3 6 5 13 . 4 15 2 4 . 2 4 9 11 9 Combat Bots Only 13 | . 2 3 4 3 4 2 4 6 . 4 1 4 3 . 2 5 5 13 . 4 10 2 4 . 2 1 9 11 8 Max Kills in Single Turn 7 | 1 1 2 3 3 1 1 1 3 . 2 1 4 2 1 1 4 4 5 . 4 7 1 3 . 2 2 2 3 4 Gunslinging 1 | . . . . . . . . . . 1 . . . . . . . . . . 1 . . . 1 . . . . Exploded 6 | . . 2 3 3 . . . 3 . . . 4 . . . 4 4 5 . 4 6 . 3 . 1 . 2 3 4 Melee 1 | . . . . . . . . . . . . . . . . . . . . 1 . . . . . . . . 1 Uniques/NPCs Destroyed 1 | . . 1 . . . . . . . . . . . . . . . . . . . . . . . . . . . YI-UF0 (-10/Mines) Combat | -11 -10 -10 -9 -9 -8 -7 -7 -7 -7 -6 -6 -6 -6 -6 -6 -5 -5 -5 -5 -4 -4 -4 -4 -4 -3 -3 -2 -2 -1 -------- Run | Yrd Mat Min Mat Min Mat Fac Low Low Dat Pro Fac Ext Cet Arc Hub Fac Upp Upp War Pro Fac Upp Upp Zhi Pro Res Res Qua Acc Hostile Shots Fired 2179 | . 18 40 103 9 85 91 103 36 . 105 41 245 25 1 109 124 31 57 19 78 192 4 14 . 45 19 124 73 388 Missed 744 | . 3 12 38 3 26 36 43 14 . 36 19 87 10 . 25 32 10 20 9 17 63 4 1 . 24 9 43 26 134 Intercepted 3 | . . . . . . . . . . . . . . . . . . . . . . . . . . . 3 . . Damage Taken 23614 | . 206 468 716 49 818 598 698 277 . 824 122 1858 348 19 1669 1496 259 658 314 2139 3001 . 257 . 466 228 1531 880 3715 Core 2383 | . 12 79 64 . 68 35 91 36 . 23 58 99 73 . 168 94 18 58 52 331 149 . 43 . 100 . 172 53 507 Absorbed by Shields 5231 | . . . . . . 68 92 84 . 188 68 280 48 . . 170 95 137 94 305 . . . . . 14 675 389 2524 Reduced by Siege Mode 9 | . . . . . . . . . . . . . . . . 4 . 5 . . . . . . . . . . . Redirected to Core 311 | . . . . . . . . . . . . . . . . . . . . . . . . . . . . . 311 Redirected to Shielding 154 | . . . . . . . . . . . . . . . . . . . . . . . . . 38 16 49 . 51 Ignored by Resistances 558 | . . . . . . . . . . . . 280 16 . . . 22 96 . 3 77 . 64 . . . . . . Regen/Repaired (Parts) 3258 | . . . . . 458 . . . . . 253 . . . . . . . 806 . 586 . . . . . . . 1155 Core Remaining (%) 74 | 100 . 63 . 84 87 . . . . 73 . . . . 53 . . . . 44 . . . . 74 100 . 84 62 Volleys Fired 949 | 10 45 31 86 2 80 25 21 10 . 24 5 48 15 . 13 43 13 32 3 32 60 5 5 . 25 39 54 54 169 Largest 4 | 2 2 2 3 1 3 3 3 3 . 3 3 3 3 . 3 3 1 3 3 3 3 3 2 . 3 3 4 4 2 Hottest 480 | 40 100 100 159 33 168 192 199 188 . 240 190 246 240 . 195 197 43 250 250 200 328 250 240 . 250 289 480 454 240 Shots Fired 2181 | 20 84 58 254 2 240 75 61 24 . 66 15 107 37 . 39 119 13 65 9 45 146 15 7 . 61 73 132 107 307 Gun 1460 | 20 22 6 250 . 240 75 61 23 . 63 15 88 37 . 39 114 6 50 9 41 109 15 . . 56 45 23 9 44 Cannon 598 | . 56 48 2 . . . . . . . . . . . . . . . . . 20 . 4 . 2 28 101 93 244 Launcher 111 | . . 2 2 2 . . . 1 . 3 . 16 . . . 5 7 15 . 4 16 . 3 . 3 . 8 5 19 Special 12 | . 6 2 . . . . . . . . . 3 . . . . . . . . 1 . . . . . . . . Kinetic 792 | 20 78 54 250 . 209 . . 9 . 20 5 29 6 . 13 54 6 5 . 28 . . . . . . . 6 . Thermal 1266 | . 6 2 2 . 31 75 61 14 . 43 10 59 23 . 26 60 . 45 9 13 129 15 4 . 58 73 124 96 288 Explosive 111 | . . 2 2 2 . . . 1 . 3 . 16 . . . 5 7 15 . 4 16 . 3 . 3 . 8 5 19 Electromagnetic 8 | . . . . . . . . . . . . . 8 . . . . . . . . . . . . . . . . Robot Hit Streak 30 | 8 11 13 11 . 24 12 29 12 . 16 12 21 15 . 24 21 4 20 8 7 18 5 5 . 16 27 28 14 30 Robot Miss Streak 6 | 1 3 5 4 . 4 2 2 6 . 4 3 4 4 . 2 2 2 1 1 1 2 2 . . 3 4 4 4 5 Penetration Max 1 | . . . . . . . . . . . . . . . . 1 . . . . . . . . . . . . . Secondary Targets 22 | . . . 2 . 1 3 2 2 . 2 . 2 1 . . 1 . 1 . . 3 . . . 2 . . . . Max Gunslinging Chain 1 | . . . 1 . 1 1 1 1 . 1 . 1 1 . . 1 . 1 . . 1 . . . 1 . . . . Shots Hit Robots 1421 | 14 49 30 144 . 176 56 51 12 . 49 11 61 30 7 30 88 5 31 8 59 109 10 4 . 45 36 72 37 197 Core Hits 905 | 7 20 17 63 5 64 22 22 12 . 33 10 93 17 3 14 51 11 48 1 26 83 5 8 . 15 20 48 39 148 Critical Kills 22 | . . . 1 . 3 . . . . . . . . . . 4 . . . . 1 . . . 1 3 1 3 5 Critical Parts Destroyed 12 | . . . . . . . . . . . . . . . . 6 . 1 . . 2 . . . . 2 1 . . Critical Strikes 65 | . . . 1 . 6 6 2 . . . . . 1 . 2 10 . 2 1 8 6 . . . 4 5 3 3 5 Burn 23 | . . . . . 3 6 2 . . . . . 1 . 2 . . 1 1 1 3 . . . 3 . . . . Meltdown 10 | . . . . . . . . . . . . . . . . . . . . . 1 . . . . 1 . 3 5 Destroy 26 | . . . 1 . 3 . . . . . . . . . . 10 . 1 . 1 2 . . . 1 4 3 . . Sever 6 | . . . . . . . . . . . . . . . . . . . . 6 . . . . . . . . . Melee Attacks 132 | . . . . . 5 1 1 1 . 18 10 1 . 7 10 12 1 20 . 28 8 . . . . . . . 9 Impact . | . . . . . . . . . . . . . . . . . . . . . . . . . . . . . . Slashing 127 | . . . . . . 1 1 1 . 18 10 1 . 7 10 12 1 20 . 28 8 . . . . . . . 9 Piercing 5 | . . . . . 5 . . . . . . . . . . . . . . . . . . . . . . . . Sneak Attacks 25 | . . . . . 1 . . . . . 1 1 . 6 2 6 . . . . 3 . . . . . . . 5 Combat Hostiles . | . . . . . . . . . . . . . . . . . . . . . . . . . . . . . . Follow-up Attacks . | . . . . . . . . . . . . . . . . . . . . . . . . . . . . . . Damage Inflicted 66039 | 180 784 674 2595 276 2965 1042 1057 362 . 1113 337 3623 782 601 867 3544 918 2862 229 3681 8333 296 1052 . 1719 1246 5731 4039 15131 Guns 21796 | 180 204 82 2305 . 2864 1024 1057 201 . 1113 243 1394 782 . 666 2236 . 710 229 846 2190 274 . . 1181 715 377 161 762 Cannons 13706 | . 580 419 20 . . . . . . . . . . . . . . . . . 574 . 167 . . 472 2581 1508 7385 Explosions 25309 | . . 144 229 271 . . . 161 . . . 2123 . . . 855 858 2152 . 724 5103 . 885 . 538 . 2773 2370 6123 Melee 4920 | . . . . . 57 . . . . . 77 100 . 601 165 445 60 . . 2111 443 . . . . . . . 861 Ramming 308 | . . 29 41 5 44 18 . . . . 17 6 . . 36 8 . . . . 23 22 . . . 59 . . . Kinetic 9481 | 180 784 501 2305 . 2437 . . 53 . 329 88 345 111 . 219 1281 . 140 . 606 . . . . . . . 102 . Thermal 26134 | . . . 20 . 427 1024 1057 148 . 784 155 1049 515 . 447 955 . 570 229 240 2985 274 167 . 1181 1187 3006 1567 8147 Explosive 25040 | . . 144 229 271 . . . 161 . . . 2123 . . . 855 858 2152 . 724 4882 . 885 . 538 . 2725 2370 6123 Electromagnetic 156 | . . . . . . . . . . . . . 156 . . . . . . . . . . . . . . . . Impact . | . . . . . . . . . . . . . . . . . . . . . . . . . . . . . . Slashing 4863 | . . . . . . . . . . . 77 100 . 601 165 445 60 . . 2111 443 . . . . . . . 861 Piercing 57 | . . . . . 57 . . . . . . . . . . . . . . . . . . . . . . . . Highest Corruption 18 | . . 2 . . . 1 . . . . 1 1 10 10 18 7 7 . . 2 5 . . . 1 . . 2 11 Average Corruption 2 | . . 2 . . . 1 . . . . 1 1 3 5 6 7 4 . . 2 2 . . . 1 . . 1 6 Corruption Purged 35 | . . . . . . 1 . . . . . 1 . 10 . . 7 . . . 5 . . . . . . . 11 Corruption Blocked . | . . . . . . . . . . . . . . . . . . . . . . . . . . . . . . Effects 101 | . . 4 . . . 5 . . . . 5 6 10 5 1 6 2 . . 12 12 . . . 2 . . 5 26 Message Errors 20 | . . . . . . 2 . . . . 1 3 3 3 . . 1 . . 2 1 . . . . . . . 4 Matter Fused 26 | . . 3 . . . 1 . . . . 1 . 2 . . . 1 . . 3 4 . . . 1 . . 2 8 Heat Flow Errors 12 | . . . . . . 1 . . . . 1 3 1 . . . . . . . 1 . . . . . . 1 4 Energy Discharges 11 | . . 1 . . . . . . . . 1 . 2 . . 1 . . . 1 1 . . . 1 . . 1 2 Parts Rejected 2 | . . . . . . . . . . . . . . . . . . . . . 1 . . . . . . . 1 Parts Fused 1 | . . . . . . . . . . . 1 . . . . . . . . . . . . . . . . . . Data Loss (minor) 18 | . . . . . . 1 . . . . . . 1 2 . 3 . . . 3 2 . . . . . . 1 5 Data Loss (major) 6 | . . . . . . . . . . . . . 1 . . 2 . . . 2 . . . . . . . . 1 Misfires 1 | . . . . . . . . . . . . . . . . . . . . . 1 . . . . . . . . Alerts 2 | . . . . . . . . . . . . . . . . . . . . 1 1 . . . . . . . . Misdirections 1 | . . . . . . . . . . . . . . . 1 . . . . . . . . . . . . . . Weapon Failures 1 | . . . . . . . . . . . . . . . . . . . . . . . . . . . . . 1 Overload Shots 1 | . . . . . . . . . . . . . 1 . . . . . . . . . . . . . . . . Overflow Damage 2606 | . 25 26 . 46 17 . . . . . 47 79 . 203 43 98 56 13 . 205 669 4 32 . 78 18 145 106 696 Projectiles 470 | . 25 10 . . . . . . . . . . . . . . . . . . 52 . . . . 18 67 46 252 Explosions 1093 | . . 16 . 46 . . . . . . . 14 . . . . 56 13 . 61 392 . 32 . 78 . 78 60 247 Melee 1043 | . . . . . 17 . . . . . 47 65 . 203 43 98 . . . 144 225 4 . . . . . . 197 Knockbacks 14 | . 7 5 1 . . . . . . . . . . . . . . . . . . . . . . 1 . . . Impact 2 | . . . 1 . . . . . . . . . . . . . . . . . . . . . . 1 . . . Kinetic 11 | . 6 5 . . . . . . . . . . . . . . . . . . . . . . . . . . . Secondary 1 | . 1 . . . . . . . . . . . . . . . . . . . . . . . . . . . . Self-Inflicted Damage 454 | . . 16 . . . . . 18 . . . . . . . . . 29 . . 81 . . . . . . 216 94 Shots 8 | . . 2 . . . . . 1 . . . . . . . . . 1 . . 1 . . . . . . 2 1 Rammed 25 | . . . 7 1 5 3 . . . . 3 1 . . 4 1 . . . . . . . . . . . . . Targets Rammed 42 | . 1 6 8 1 7 3 . . . . 3 1 . . 5 1 . . . . 2 1 . . . 3 . . . Kicked 13 | . 1 6 . . . . . . . . . . . . . . . . . . 2 1 . . . 3 . . . Crushed 4 | . . . 1 . 2 . . . . . . . . . 1 . . . . . . . . . . . . . . Highest Temperature 412 | . 72 168 139 . 412 219 285 61 . 119 177 397 264 . 8 395 . 220 88 . 105 283 . . 389 362 244 139 268 Average Temperature 69 | . 20 45 33 . 55 61 105 23 . 49 80 95 99 . 4 111 . 75 42 . 12 135 . . 182 116 71 35 107 Received Heat Transfer 3809 | . 138 67 234 . 432 124 200 53 . 19 28 685 22 . 177 265 96 153 . 87 332 . 27 . 88 22 57 52 451 Effects 4 | . . . . . 1 . 2 . . . . 1 . . . . . . . . . . . . . . . . . Shutdowns 1 | . . . . . 1 . . . . . . . . . . . . . . . . . . . . . . . . Energy Bleed 1 | . . . . . . . . . . . . 1 . . . . . . . . . . . . . . . . . Interference 2 | . . . . . . . 2 . . . . . . . . . . . . . . . . . . . . . . Siege Activations 5 | . . . . . . . . . . . . . . . 1 1 . 1 2 . . . . . . . . . . Total Turns 51 | . . . . . . . . . . . . . . . 2 11 . 4 34 . . . . . . . . . . Longest Duration 27 | . . . . . . . . . . . . . . . 2 11 . 4 27 . . . . . . . . . . Robots Corrupted 2 | . . . . . . . . . . . . . 2 . . . . . . . . . . . . . . . . Combat Hostiles 2 | . . . . . . . . . . . . . 2 . . . . . . . . . . . . . . . . Parts Fried 2 | . . . . . . . . . . . . . 2 . . . . . . . . . . . . . . . . Impact Corruptions 1 | . . . . . . . . . . . . . . . . . . . . . . 1 . . . . . . . Robots Melted 17 | . . . . . 1 3 1 . . . . . 1 . . . . . . . 2 . . . . 1 . 3 5 Combat Hostiles 16 | . . . . . 1 3 1 . . . . . 1 . . . . . . . 2 . . . . . . 3 5 Parts Melted 84 | . . . . . 3 14 3 . . 3 . 7 1 . 2 2 . 3 . . 11 . . . 4 2 8 9 12 Heat Transferred 34054 | . . . 37 . 1147 2604 2292 324 . 1700 350 2325 1069 . 851 1443 . 888 407 349 3763 407 148 . 1813 1443 2677 1286 6731 Parts Sabotaged 4 | . . . . . . . . . . . . . . . . . . . . . 2 . . . . . . 1 1 Parts Stolen . | . . . . . . . . . . . . . . . . . . . . . . . . . . . . . . Parts Stripped . | . . . . . . . . . . . . . . . . . . . . . . . . . . . . . . Power Chain Reactions 2 | . . . . . . . . . . . . . . . . . . . . . . . . . . . 1 . 1 Alert | -11 -10 -10 -9 -9 -8 -7 -7 -7 -7 -6 -6 -6 -6 -6 -6 -5 -5 -5 -5 -4 -4 -4 -4 -4 -3 -3 -2 -2 -1 ------- Run | Yrd Mat Min Mat Min Mat Fac Low Low Dat Pro Fac Ext Cet Arc Hub Fac Upp Upp War Pro Fac Upp Upp Zhi Pro Res Res Qua Acc Peak Influence 2535 | 30 183 148 461 244 369 238 . . . . 55 349 299 308 1413 1041 . . . . 1356 . . . . 129 479 1067 2535 Initial 662 | . 19 . 9 173 . 59 . . . . . . 132 87 107 662 . . . . 28 . . . . . 15 263 562 Average 338 | 15 48 48 277 176 174 128 . . . . 36 148 231 266 733 760 . . . . 446 . . . . 41 87 646 1542 Maximum Alert Level 5 | . . . 2 1 1 1 . . . . . 1 1 1 4 3 . . . . 4 . . . . . 2 3 5 Low Security (%) 56 | 100 100 100 26 51 62 79 . . . . 100 65 10 19 3 . . . . . 48 . . . . 100 87 . . Level 1 19 | . . . 52 48 37 21 . . . . . 34 89 80 4 . . . . . 19 . . . . . 6 16 . Level 2 8 | . . . 21 . . . . . . . . . . . 35 28 . . . . 4 . . . . . 5 43 17 Level 3 8 | . . . . . . . . . . . . . . . 52 71 . . . . 4 . . . . . . 40 7 Level 4 4 | . . . . . . . . . . . . . . . 3 . . . . . 21 . . . . . . . 33 Level 5 3 | . . . . . . . . . . . . . . . . . . . . . . . . . . . . . 41 High Security . | . . . . . . . . . . . . . . . . . . . . . . . . . . . . . . Max Security . | . . . . . . . . . . . . . . . . . . . . . . . . . . . . . . Squads Dispatched 82 | . 2 . 2 . 2 6 . . . . 1 5 . . 9 5 . 1 . . 6 . 1 . . 9 2 8 23 Investigation 19 | . 2 . 1 . . 3 . . . . . 1 . . 3 1 . . . . 1 . . . . 4 . 1 2 Extermination 11 | . . . . . . 1 . . . . 1 . . . . 1 . . . . 2 . . . . . . 2 4 Reinforcement 27 | . . . 1 . 2 1 . . . . . 4 . . 4 1 . . . . 1 . . . . 5 2 . 6 Assault 17 | . . . . . . . . . . . . . . . 1 2 . 1 . . 2 . 1 . . . . 2 8 Garrison 8 | . . . . . . 1 . . . . . . . . 1 . . . . . . . . . . . . 3 3 Intercept . | . . . . . . . . . . . . . . . . . . . . . . . . . . . . . . Searches Triggered . | . . . . . . . . . . . . . . . . . . . . . . . . . . . . . . Data Miner Redirects 8 | . . . . . . . . . . . . 1 . . . 1 . . . . 1 . . . . . . . 5 Construction Impeded 7 | . . . . . 1 . . . . . . 1 . . 1 1 . . . . 1 . . . . . . . 2 Haulers Reinforced 2 | . . . . . . . . . . . . . . . . . . . . . . . . . . . 1 . 1 Active Scanning Responses . | . . . . . . . . . . . . . . . . . . . . . . . . . . . . . . Cargo Convoy Interrupts . | . . . . . . . . . . . . . . . . . . . . . . . . . . . . . . Stealth | -11 -10 -10 -9 -9 -8 -7 -7 -7 -7 -6 -6 -6 -6 -6 -6 -5 -5 -5 -5 -4 -4 -4 -4 -4 -3 -3 -2 -2 -1 --------- Run | Yrd Mat Min Mat Min Mat Fac Low Low Dat Pro Fac Ext Cet Arc Hub Fac Upp Upp War Pro Fac Upp Upp Zhi Pro Res Res Qua Acc Distress Signals 60 | . 1 1 2 . 4 1 . . . . 1 2 2 . 1 1 . . 1 28 4 . . . . 5 4 . 2 Communications Jammed . | . . . . . . . . . . . . . . . . . . . . . . . . . . . . . . Distress Signals . | . . . . . . . . . . . . . . . . . . . . . . . . . . . . . . Times Spotted 574 | . 12 14 39 3 37 23 10 12 . 12 4 37 9 5 27 29 10 17 33 10 52 3 2 . 7 19 30 28 90 Peak Tracking Total 19 | . 2 3 4 3 4 6 5 7 . 3 2 4 5 1 11 8 5 6 19 4 7 3 2 . 2 3 7 6 8 Tactical Retreats 23 | . . 1 4 . 1 . . 1 . . 1 1 . . 1 2 1 1 2 . 1 . . . . . 1 . 5 Traps | -11 -10 -10 -9 -9 -8 -7 -7 -7 -7 -6 -6 -6 -6 -6 -6 -5 -5 -5 -5 -4 -4 -4 -4 -4 -3 -3 -2 -2 -1 ------- Run | Yrd Mat Min Mat Min Mat Fac Low Low Dat Pro Fac Ext Cet Arc Hub Fac Upp Upp War Pro Fac Upp Upp Zhi Pro Res Res Qua Acc Traps Triggered 5 | . . . . . . . . . . . 1 . . . . 1 . . . . 1 . . . . . . 1 1 Indirectly . | . . . . . . . . . . . . . . . . . . . . . . . . . . . . . . Trap Hack Attempts . | . . . . . . . . . . . . . . . . . . . . . . . . . . . . . . Triggered . | . . . . . . . . . . . . . . . . . . . . . . . . . . . . . . Disarmed . | . . . . . . . . . . . . . . . . . . . . . . . . . . . . . . Reprogrammed . | . . . . . . . . . . . . . . . . . . . . . . . . . . . . . . Reused . | . . . . . . . . . . . . . . . . . . . . . . . . . . . . . . Traps Extracted . | . . . . . . . . . . . . . . . . . . . . . . . . . . . . . . Installed . | . . . . . . . . . . . . . . . . . . . . . . . . . . . . . . Triggered 23 | . . . . . . . 2 2 . . . . . . . . . . 19 . . . . . . . . . . Machines | -11 -10 -10 -9 -9 -8 -7 -7 -7 -7 -6 -6 -6 -6 -6 -6 -5 -5 -5 -5 -4 -4 -4 -4 -4 -3 -3 -2 -2 -1 ---------- Run | Yrd Mat Min Mat Min Mat Fac Low Low Dat Pro Fac Ext Cet Arc Hub Fac Upp Upp War Pro Fac Upp Upp Zhi Pro Res Res Qua Acc Machines Disabled 69 | . 2 2 1 . 1 1 1 1 . . . 1 1 1 14 3 . 2 . . 24 . 1 . . . . 10 3 Max in Single Turn 8 | . 1 1 1 . 1 . 1 1 . . . . 1 . 1 1 . 2 . . 8 . 1 . . . . 1 1 Garrison Access 3 | . . . . . . . . . . . . . . . . . . . . . . . . . . 2 . . 1 Network Hub 1 | . . . . . . . . . . . . . . . 1 . . . . . . . . . . . . . . Machines Repaired . | . . . . . . . . . . . . . . . . . . . . . . . . . . . . . . Machines Dismantled . | . . . . . . . . . . . . . . . . . . . . . . . . . . . . . . Machines Sabotaged . | . . . . . . . . . . . . . . . . . . . . . . . . . . . . . . Overloaded Fab Kills . | . . . . . . . . . . . . . . . . . . . . . . . . . . . . . . Hacking | -11 -10 -10 -9 -9 -8 -7 -7 -7 -7 -6 -6 -6 -6 -6 -6 -5 -5 -5 -5 -4 -4 -4 -4 -4 -3 -3 -2 -2 -1 --------- Run | Yrd Mat Min Mat Min Mat Fac Low Low Dat Pro Fac Ext Cet Arc Hub Fac Upp Upp War Pro Fac Upp Upp Zhi Pro Res Res Qua Acc Machines Accessed 106 | . 9 1 10 . 11 7 4 . 3 . 4 6 . . 11 3 . . . . 8 2 1 4 . 6 2 9 5 Terminals 66 | . 7 . 9 . 9 4 . . . . 1 5 . . 10 3 . . . . 2 . . . . 3 1 8 4 Fabricators 7 | . . . . . . 1 . . . . . . . . . . . . . . 3 . . . . 1 1 . 1 Repair Stations 7 | . . . . . 2 . . . . . 2 . . . . . . . . . 2 . . . . 1 . . . Recycling Units 7 | . 2 . 1 . . 1 . . . . 1 1 . . . . . . . . 1 . . . . . . . . Scanalyzers 1 | . . . . . . . . . . . . . . . . . . . . . . . . . . . . 1 . Garrison Access 3 | . . . . . . 1 . . . . . . . . 1 . . . . . . . . . . 1 . . . Total Hacks 381 | . 26 1 35 . 42 19 6 . 23 . 5 15 . . 23 12 . . . . 44 6 1 17 . 18 11 60 17 Successful 187 | . 14 1 21 . 25 5 6 . 23 . 2 1 . . 10 4 . . . . 18 6 1 17 . 3 1 27 2 Failed 193 | . 12 . 13 . 17 14 . . . . 3 14 . . 13 8 . . . . 26 . . . . 15 10 33 15 Catastrophic 58 | . 3 . . . 2 4 . . . . 3 3 . . 4 3 . . . . 10 . . . . 8 4 9 5 Database Lockouts 1 | . . . 1 . . . . . . . . . . . . . . . . . . . . . . . . . . Manual 184 | . 21 . 26 . 27 7 . 1 . . 1 8 1 . 11 3 . . 1 . 21 . . . . 2 5 47 2 Terminals 263 | . 24 . 34 . 37 11 . . . . 1 13 . . 21 12 . . . . 22 . . . . 12 3 58 15 Fabricators 26 | . . . . . . 4 . . . . . . . . . . . . . . 11 . . . . 1 8 . 2 Repair Stations 19 | . . . . . 5 . . . . . 3 . . . . . . . . . 8 . . . . 3 . . . Recycling Units 11 | . 2 . 1 . . 2 . . . . 1 2 . . . . . . . . 3 . . . . . . . . Scanalyzers 2 | . . . . . . . . . . . . . . . . . . . . . . . . . . . . 2 . Garrison Access 6 | . . . . . . 2 . . . . . . . . 2 . . . . . . . . . . 2 . . . Terminal Hacks 115 | . 4 1 11 . 13 2 6 . 23 . . . . . 5 4 . . . . 5 6 1 17 . . . 16 1 Record 21 | . . . . . . . 4 . 6 . . . . . . . . . . . . 5 . 5 . . . 1 . Part Schematic 16 | . 1 . . . 1 . . . 8 . . . . . . 1 . . . . 1 . . 4 . . . . . Robot Schematic 6 | . . . . . . . . . 6 . . . . . . . . . . . . . . . . . . . . Robot Analysis 14 | . 2 . 3 . 3 . . . . . . . . . 1 . . . . . 1 . . 4 . . . . . Prototype ID Bank 14 | . . . 1 . 4 . . . 3 . . . . . . . . . . . . . . 4 . . . 2 . Open Door 5 | . . 1 . . . . 2 . . . . . . . . . . . . . . 1 1 . . . . . . Branch Access Points 1 | . . . . . . . . . . . . . . . . 1 . . . . . . . . . . . . . Emergency Access Points 2 | . . . 1 . . . . . . . . . . . 1 . . . . . . . . . . . . . . Terminal Index 1 | . . . . . . . . . . . . . . . . . . . . . . . . . . . . 1 . Alert Level 7 | . . . 1 . 2 . . . . . . . . . 1 . . . . . 1 . . . . . . 2 . Unreport Threat 5 | . . . 1 . 1 . . . . . . . . . . . . . . . . . . . . . . 2 1 Locate Traps 8 | . 1 . 2 . 1 1 . . . . . . . . 1 1 . . . . . . . . . . . 1 . Maintenance Status 1 | . . . . . . . . . . . . . . . . . . . . . . . . . . . . 1 . Security Status 1 | . . . . . . . . . . . . . . . . . . . . . . . . . . . . 1 . Surveillance Status 1 | . . . . . . . . . . . . . . . . . . . . . . . . . . . . 1 . Patrol Status 3 | . . . . . . . . . . . . . . . . . . . . . 1 . . . . . . 2 . Reinforcement Status 1 | . . . 1 . . . . . . . . . . . . . . . . . . . . . . . . . . Garrison Status 1 | . . . . . . . . . . . . . . . . . . . . . . . . . . . . 1 . Zone Layout 7 | . . . 1 . 1 1 . . . . . . . . 1 1 . . . . 1 . . . . . . 1 . Fabricator Hacks 5 | . . . . . . 1 . . . . . . . . . . . . . . 2 . . . . . 1 . 1 Network Status 3 | . . . . . . 1 . . . . . . . . . . . . . . 1 . . . . . . . 1 Build 2 | . . . . . . . . . . . . . . . . . . . . . 1 . . . . . 1 . . Repair Station Hacks 12 | . . . . . 4 . . . . . 2 . . . . . . . . . 5 . . . . 1 . . . Scan Component 7 | . . . . . 2 . . . . . 1 . . . . . . . . . 3 . . . . 1 . . . Repair 5 | . . . . . 2 . . . . . 1 . . . . . . . . . 2 . . . . . . . . Recycling Unit Hacks . | . . . . . . . . . . . . . . . . . . . . . . . . . . . . . . Scanalyzer . | . . . . . . . . . . . . . . . . . . . . . . . . . . . . . . Garrison Access Hacks 1 | . . . . . . . . . . . . . . . . . . . . . . . . . . 1 . . . Seal Access 1 | . . . . . . . . . . . . . . . . . . . . . . . . . . 1 . . . Unauthorized Hacks 54 | . 10 . 10 . 8 2 . . . . . 1 . . 5 . . . . . 6 . . . . 1 . 11 . Terminals 45 | . 8 . 9 . 8 . . . . . . 1 . . 3 . . . . . 4 . . . . 1 . 11 . Track 9 | . . . 1 . . . . . . . . . . . 1 . . . . . 2 . . . . 1 . 4 . Botnet 10 | . 1 . 2 . 2 . . . . . . 1 . . 1 . . . . . 1 . . . . . . 2 . Operators 6 | . 1 . 1 . 1 . . . . . . . . . 1 . . . . . 1 . . . . . . 1 . Skim 20 | . 6 . 5 . 5 . . . . . . . . . . . . . . . . . . . . . . 4 . Fabricators 2 | . . . . . . 1 . . . . . . . . . . . . . . 1 . . . . . . . . Report 1 | . . . . . . . . . . . . . . . . . . . . . 1 . . . . . . . . Liberate 1 | . . . . . . 1 . . . . . . . . . . . . . . . . . . . . . . . Repair Stations . | . . . . . . . . . . . . . . . . . . . . . . . . . . . . . . Recycling Units 5 | . 2 . 1 . . 1 . . . . . . . . . . . . . . 1 . . . . . . . . Recyclers 2 | . . . . . . 1 . . . . . . . . . . . . . . 1 . . . . . . . . Tunnel 3 | . 2 . 1 . . . . . . . . . . . . . . . . . . . . . . . . . . Scanalyzers . | . . . . . . . . . . . . . . . . . . . . . . . . . . . . . . Garrison Access 2 | . . . . . . . . . . . . . . . 2 . . . . . . . . . . . . . . Broadcast 1 | . . . . . . . . . . . . . . . 1 . . . . . . . . . . . . . . Reprogram 1 | . . . . . . . . . . . . . . . 1 . . . . . . . . . . . . . . Data Cores Recovered 2 | . . . . . . 1 . . . . . . . . . . . . . . . . . . . . . 1 . Used . | . . . . . . . . . . . . . . . . . . . . . . . . . . . . . . Hacking Detections 82 | . 6 . 7 . 10 7 . . . . 4 6 1 . 11 3 . . . . 7 . . . . 5 2 8 5 Full Trace Events 9 | . . . . . . 3 . . . . . 1 . . . 1 . . . . . . . . . 2 . . 2 Feedback Events 1 | . . . . . . 1 . . . . . . . . . . . . . . . . . . . . . . . Corruption 1 | . . . . . . 1 . . . . . . . . . . . . . . . . . . . . . . . Feedback Blocked . | . . . . . . . . . . . . . . . . . . . . . . . . . . . . . . Robot Schematics Acquired 6 | . . . . . . . . . 6 . . . . . . . . . . . . . . . . . . . . Robots Built . | . . . . . . . . . . . . . . . . . . . . . . . . . . . . . . Authchips . | . . . . . . . . . . . . . . . . . . . . . . . . . . . . . . Time . | . . . . . . . . . . . . . . . . . . . . . . . . . . . . . . Total Robot Build Rating . | . . . . . . . . . . . . . . . . . . . . . . . . . . . . . . Part Schematics Acquired 16 | . 1 . . . 1 . . . 8 . . . . . . 1 . . . . 1 . . 4 . . . . . Parts Built 3 | . . . . . . . . . . . . . . . . . . . . . 2 . . . . . 1 . . Authchips . | . . . . . . . . . . . . . . . . . . . . . . . . . . . . . . Time 138 | . . . . . . . . . . . . . . . . . . . . . 69 . . . . . 69 . . Total Part Build Rating 27 | . . . . . . . . . . . . . . . . . . . . . 18 . . . . . 9 . . Parts Repaired 5 | . . . . . 2 . . . . . 1 . . . . . . . . . 2 . . . . . . . . Time 239 | . . . . . 76 . . . . . 19 . . . . . . . . . 144 . . . . . . . . Parts Recycled . | . . . . . . . . . . . . . . . . . . . . . . . . . . . . . . Recycled Matter . | . . . . . . . . . . . . . . . . . . . . . . . . . . . . . . Retrieved Matter . | . . . . . . . . . . . . . . . . . . . . . . . . . . . . . . Retrieved Components . | . . . . . . . . . . . . . . . . . . . . . . . . . . . . . . Parts Scanalyzed . | . . . . . . . . . . . . . . . . . . . . . . . . . . . . . . Part Schematics Acquired . | . . . . . . . . . . . . . . . . . . . . . . . . . . . . . . Parts Damaged . | . . . . . . . . . . . . . . . . . . . . . . . . . . . . . . Bothacking | -11 -10 -10 -9 -9 -8 -7 -7 -7 -7 -6 -6 -6 -6 -6 -6 -5 -5 -5 -5 -4 -4 -4 -4 -4 -3 -3 -2 -2 -1 ------------ Run | Yrd Mat Min Mat Min Mat Fac Low Low Dat Pro Fac Ext Cet Arc Hub Fac Upp Upp War Pro Fac Upp Upp Zhi Pro Res Res Qua Acc Used RIF Installer . | . . . . . . . . . . . . . . . . . . . . . . . . . . . . . . Robots Hacked . | . . . . . . . . . . . . . . . . . . . . . . . . . . . . . . Non-combat . | . . . . . . . . . . . . . . . . . . . . . . . . . . . . . . Combat . | . . . . . . . . . . . . . . . . . . . . . . . . . . . . . . Robot Hacks Applied . | . . . . . . . . . . . . . . . . . . . . . . . . . . . . . . Relay Couplers Released 8 | . . . . . . . . . . . . . . . 4 . . . . . . . . . . 1 . . 3 Machine Destruction 4 | . . . . . . . . . . . . . . . . . . . . . . . . . . 1 . . 3 Programmers 4 | . . . . . . . . . . . . . . . 4 . . . . . . . . . . . . . . Fabnet Peak Effective % . | . . . . . . . . . . . . . . . . . . . . . . . . . . . . . . Robots Rewired 1 | . . . . . . . . . . . . . . . . . . . . . . . . . . . . 1 . Allies Hacked . | . . . . . . . . . . . . . . . . . . . . . . . . . . . . . . Hacks Repelled . | . . . . . . . . . . . . . . . . . . . . . . . . . . . . . . Allies | -11 -10 -10 -9 -9 -8 -7 -7 -7 -7 -6 -6 -6 -6 -6 -6 -5 -5 -5 -5 -4 -4 -4 -4 -4 -3 -3 -2 -2 -1 -------- Run | Yrd Mat Min Mat Min Mat Fac Low Low Dat Pro Fac Ext Cet Arc Hub Fac Upp Upp War Pro Fac Upp Upp Zhi Pro Res Res Qua Acc Total Allies 23 | . . 3 . . . 2 . . . . . 9 5 . 1 . . . . . . 2 . . . . . 1 . Largest Group 6 | . . 3 . . . 2 . . . . . 4 6 6 6 . . . . . . 2 . . . . . 1 . Highest-Rated Group 619 | . . 40 . . . 74 . . . . . 230 619 596 521 . . . . . . 84 . . . . . 58 . Highest-Rated Ally 159 | . . 16 . . . 37 . . . . . 159 159 123 96 . . . . . . 46 . . . . . 58 . Total Orders 57 | . . 3 . . . . 4 . . 19 . 7 9 5 5 . . . 3 . . . . . . . 2 . . STAY 9 | . . . . . . . . . . . . . 6 . 3 . . . . . . . . . . . . . . ROAM 5 | . . 3 . . . . . . . . . . . 2 . . . . . . . . . . . . . . . FOLLOW 8 | . . . . . . . . . . . . . 3 3 2 . . . . . . . . . . . . . . EXPLORE 7 | . . . . . . . . . . . . 3 . . . . . . 2 . . . . . . . 2 . . RETURN 28 | . . . . . . . 4 . . 19 . 4 . . . . . . 1 . . . . . . . . . . Ally Attacks 298 | . . 10 . . . 33 8 . . 58 . 69 23 22 58 . . . . . . 13 . . . . . 4 . Total Damage 8280 | . . 76 . . . 653 64 . . 378 . 1226 1104 738 3572 . . . . . . 355 . . . . . 114 . Kills 54 | . . . . . . 9 . . . 1 . 6 5 4 28 . . . . . . 1 . . . . . . . Allies Corrupted 1 | . . . . . . . . . . . . . . . 1 . . . . . . . . . . . . . . Allies Melted 1 | . . . . . . . . . . . . . . . . . . . . . . . . . . . 1 . . Intel | -11 -10 -10 -9 -9 -8 -7 -7 -7 -7 -6 -6 -6 -6 -6 -6 -5 -5 -5 -5 -4 -4 -4 -4 -4 -3 -3 -2 -2 -1 ------- Run | Yrd Mat Min Mat Min Mat Fac Low Low Dat Pro Fac Ext Cet Arc Hub Fac Upp Upp War Pro Fac Upp Upp Zhi Pro Res Res Qua Acc Robot Analysis Total 14 | . 2 . 3 . 3 . . . . . . . . . 1 . . . . . 1 . . 4 . . . . . Derelict Logs Recovered 16 | . . 1 . 2 . . 1 1 . 2 . . . . . . 1 2 . 2 . 1 3 . . . . . . Drone Launches 34 | . . . . . . . 4 . . 21 . 5 . . . . . . 2 . . . . . . . 2 . . Drone Recoveries 29 | . . . . . . . 4 . . 21 . 3 . . . . . . 1 . . . . . . . . . . Exploration | -11 -10 -10 -9 -9 -8 -7 -7 -7 -7 -6 -6 -6 -6 -6 -6 -5 -5 -5 -5 -4 -4 -4 -4 -4 -3 -3 -2 -2 -1 ------------- Run | Yrd Mat Min Mat Min Mat Fac Low Low Dat Pro Fac Ext Cet Arc Hub Fac Upp Upp War Pro Fac Upp Upp Zhi Pro Res Res Qua Acc Turns Passed 33525 | 199 1680 1580 1680 810 2060 1000 1715 578 122 1605 801 1399 540 310 779 1058 973 1785 1395 1040 1319 1101 1495 285 801 1464 1477 768 1706 Spaces Moved 17134 | 108 667 579 773 399 851 495 967 337 74 861 375 693 234 143 418 498 644 996 658 454 642 542 698 158 509 1037 1048 498 778 Core 5 | 5 . . . . . . . . . . . . . . . . . . . . . . . . . . . . . Treads 8156 | . 9 . 773 399 851 495 967 337 74 861 375 693 234 143 418 498 76 . 584 369 . . . . . . . . . Legs 7326 | 103 658 579 . . . . . . . . . . . . . . . . . 85 633 542 698 158 509 1037 1048 498 778 Wheels 1647 | . . . . . . . . . . . . . . . . . 568 996 74 . 9 . . . . . . . . Hover . | . . . . . . . . . . . . . . . . . . . . . . . . . . . . . . Flight . | . . . . . . . . . . . . . . . . . . . . . . . . . . . . . . Fastest Speed 50 | 50 120 190 160 170 161 163 163 157 155 155 158 158 160 160 160 160 135 135 155 102 102 190 190 120 120 120 111 111 116 Average Speed 155 | 116 167 190 168 170 169 168 163 157 156 157 158 159 161 160 160 160 138 160 181 164 146 190 190 158 120 120 116 112 129 Slowest Speed 330 | 120 330 260 170 170 170 170 163 163 157 158 158 243 162 160 160 160 160 230 240 240 210 190 190 190 190 120 186 182 188 Overloaded Moves . | . . . . . . . . . . . . . . . . . . . . . . . . . . . . . . Propulsion Burnouts . | . . . . . . . . . . . . . . . . . . . . . . . . . . . . . . Robots Hopped . | . . . . . . . . . . . . . . . . . . . . . . . . . . . . . . Cave-ins Triggered . | . . . . . . . . . . . . . . . . . . . . . . . . . . . . . . Teleports 1 | . . . . . . . . . . . . . . . . . . . . . . . . . . . . . 1 Exploration Rate (%) 60 | 6 94 74 80 95 70 18 95 73 68 87 11 85 76 89 40 16 69 82 90 52 19 70 76 60 62 35 40 61 13 Regions Visited 29 Branch Regions 19 Pre-discovered Areas 15 | . 3 . 2 . 1 . 1 1 1 . . . . . . . 1 . . 1 . . 1 3 . . . . . Known Exits Taken 21 | . . 1 1 1 1 . 1 . . . 1 1 . . 1 1 1 1 1 1 1 1 1 1 1 1 1 1 . Unknown Exits Taken 8 | 1 1 . . . . 1 . 1 1 1 . . 1 1 . . . . . . . . . . . . . . . Scrap Searched 29 | . . 2 . 1 . . 4 4 . . . . . . . . 4 3 . 1 . 1 4 . 5 . . . . Spaces Dug 575 | . 1 26 . 16 4 1 . . . 33 9 . . . 6 6 35 97 . 62 2 . 60 . 58 15 26 69 49 Terrain Destroyed 1661 | . 1 26 15 17 4 1 . 14 . 55 9 76 . . 8 39 69 212 . 157 233 . 74 . 90 17 65 148 331 Melee 69 | . . . . . 4 1 . . . 18 9 . . . 6 6 . 20 . 3 2 . . . . . . . . Projectile 192 | . 1 2 . . . . . 3 . . . . . . 2 6 4 13 . 2 6 . . . 2 17 30 41 63 AOE 1400 | . . 24 15 17 . . . 11 . 37 . 76 . . . 27 65 179 . 152 225 . 74 . 88 . 35 107 268 Terrain Rammed . | . . . . . . . . . . . . . . . . . . . . . . . . . . . . . . Walls Destroyed . | . . . . . . . . . . . . . . . . . . . . . . . . . . . . . . Machines Disabled . | . . . . . . . . . . . . . . . . . . . . . . . . . . . . . . Actions | -11 -10 -10 -9 -9 -8 -7 -7 -7 -7 -6 -6 -6 -6 -6 -6 -5 -5 -5 -5 -4 -4 -4 -4 -4 -3 -3 -2 -2 -1 --------- Run | Yrd Mat Min Mat Min Mat Fac Low Low Dat Pro Fac Ext Cet Arc Hub Fac Upp Upp War Pro Fac Upp Upp Zhi Pro Res Res Qua Acc Total 22024 | 157 1137 983 988 525 1272 598 1051 361 80 1034 555 877 378 217 488 655 708 1099 859 662 904 602 852 192 650 1199 1198 614 1129 Wait 2453 | 27 362 327 46 114 239 35 33 . . 78 144 69 93 45 27 42 26 20 121 102 76 41 132 7 93 49 23 3 79 Move 17104 | 107 666 578 772 398 850 494 966 336 73 860 374 692 233 142 417 497 643 995 657 453 641 541 697 157 508 1036 1047 497 777 Hop . | . . . . . . . . . . . . . . . . . . . . . . . . . . . . . . Pick Up 254 | 6 26 7 16 1 15 10 3 1 . 7 4 13 11 6 1 13 7 5 16 8 23 2 2 6 1 10 12 9 13 Fast Attach 124 | 7 4 3 7 . 9 1 2 . 2 1 2 2 2 2 . 9 . 1 14 . 12 2 . 7 2 5 10 10 8 Attach 117 | . 2 2 2 . 1 3 2 . 1 1 1 14 1 1 3 4 3 2 3 13 24 3 . 1 1 3 5 4 17 Detach 33 | . . . 1 . . . . . 1 . . 3 1 . . . . . 4 3 15 . . . . 1 1 2 1 Swap 515 | . 13 21 29 8 44 17 16 10 1 26 9 26 7 6 10 26 10 21 8 19 30 4 16 3 16 32 26 18 43 Drop 290 | . 18 8 21 1 22 9 6 3 2 19 3 4 15 8 2 8 5 3 32 4 13 3 . 11 4 21 20 12 13 Fire 949 | 10 45 31 86 2 80 25 21 10 . 24 5 48 15 . 13 43 13 32 3 32 60 5 5 . 25 39 54 54 169 Melee 132 | . . . . . 5 1 1 1 . 18 10 1 . 7 10 12 1 20 . 28 8 . . . . . . . 9 Ram . | . . . . . . . . . . . . . . . . . . . . . . . . . . . . . . Kick 13 | . 1 6 . . . . . . . . . . . . . . . . . . 2 1 . . . 3 . . . Crush 29 | . . . 8 1 7 3 . . . . 3 1 . . 5 1 . . . . . . . . . . . . . Escape Stasis 4 | . . . . . . . . . . . . 4 . . . . . . . . . . . . . . . . . Rewire 7 | . . . . . . . 1 . . . . . . . . . . . 1 . . . . . . . . 5 . Trap . | . . . . . . . . . . . . . . . . . . . . . . . . . . . . . . Miscellaneous . | . . . . . . . . . . . . . . . . . . . . . . . . . . . . . . Route ------- -11/Scrapyard -10/Materials (discovered 6 exits: *Mat x3 / *Min x2 / Sub) -10/Mines (discovered 3 exits: *Mat x2 / [*Exi]) -9/Materials (discovered 5 exits: *Mat x3 / *Min x2) -9/Mines (discovered 2 exits: *Mat x2) -8/Materials (discovered 3 exits: *Fac x3) -7/Factory -7/Lower Caves -7/Lower Caves (discovered 2 exits: *Fac / *Dat) -7/Data Miner -6/Proximity Caves -6/Factory (discovered 2 exits: Low / *Ext) -6/Extension (discovered 3 exits: *Fac x2 / *Cet) -6/Cetus (discovered 2 exits: *Fac / [*Arc]) -6/Archives (discovered 3 exits: *Fac / *Hub x2) -6/Hub_04(d) (discovered 2 exits: *Fac x2) -5/Factory (discovered 3 exits: *Fac / *Upp x2) -5/Upper Caves -5/Upper Caves -5/Warlord -4/Proximity Caves -4/Factory -4/Upper Caves -4/Upper Caves (discovered 2 exits: *Res / *Zhi) -4/Zhirov -3/Proximity Caves -3/Research (discovered 2 exits: *Res x2) -2/Research (discovered 2 exits: *Acc / *Qua) -2/Quarantine -1/Access To Epsilon Eridani History --------- Turn | Location | Event 3 | -11/Scrapyard | Discovered new exit (range 15) 200 | -11/Scrapyard | Entered Materials 317 | -10/Materials | Build established: Mutant 397 | -10/Materials | Discovered new exit (range 12) 425 | -10/Materials | Discovered new exit (range 16) 1150 | -10/Materials | Discovered new exit (range 13) 1238 | -10/Materials | Discovered new exit (range 8) 1331 | -10/Materials | Discovered new exit (range 16) 1512 | -10/Materials | Identified exit to Subcaves 1582 | -10/Materials | Learned location of Recycling (-7) 1644 | -10/Materials | Learned Storage stockpile data 1739 | -10/Materials | Learned Storage security intel 1771 | -10/Materials | Learned location of 1 exit from Recycling 1863 | -10/Materials | Learned Storage emergency access door positions 1880 | -10/Materials | Entered Mines 1881 | -10/Mines | Identified exit to Materials 1926 | -10/Mines | YI-UF0 nonchalantly dropped a Grenade Launcher on the ground 1982 | -10/Mines | Deemed a non-threat by the Exiles lab entrance 1982 | -10/Mines | Discovered new exit (range 5) 2066 | -10/Mines | Destroyed YI-UF0 2198 | -10/Mines | Received a Rocket Launcher from a helpful Derelict 2503 | -10/Mines | Found the Drone Emporium 2507 | -10/Mines | Learned Materials garrison access intel 2512 | -10/Mines | Found Prototype Device 2512 | -10/Mines | Identified Thief Drone Bay 2572 | -10/Mines | Assisted by bots powering up and referring to "LRC-V3" 2738 | -10/Mines | Assembled infested the area 2743 | -10/Mines | Assisted by a Guerilla fighting off Assembled 2816 | -10/Mines | Lost 3 allies 3460 | -10/Mines | Entered Materials 3460 | -9/Materials | Evolved 2 slots: Propulsion x1, Weapon x1 3461 | -9/Materials | Identified exit to Materials 3757 | -9/Materials | Discovered exit to Materials (range 12) 4598 | -9/Materials | Learned 4 Recycling zone layouts 4621 | -9/Materials | Identified exit to Mines 4638 | -9/Materials | Learned 2 Materials zone layouts 4641 | -9/Materials | Learned Storage security intel 4647 | -9/Materials | Learned 4 Recycling zone layouts 4664 | -9/Materials | Loaded intel: 2 repair station locations 4828 | -9/Materials | Build established: Tank 5051 | -9/Materials | Central database locked down 5140 | -9/Materials | Entered Mines 5144 | -9/Mines | Discovered exit to Materials (range 13) 5274 | -9/Mines | A weapon hastily lodged in a ceiling crevice suddenly fell to the ground 5394 | -9/Mines | Build established: Gunner 5738 | -9/Mines | Learned Materials garrison access intel 5740 | -9/Mines | Learned location of 1 exit from Materials 5740 | -9/Mines | Discovered exit to Materials (range 4) 5950 | -9/Mines | Entered Materials 5950 | -8/Materials | Evolved 2 slots: Utility x2 5951 | -8/Materials | Identified exit to Factory 5953 | -8/Materials | Loaded intel: 1 garrison access location 6297 | -8/Materials | Repaired Arm. Treads 7558 | -8/Materials | Learned location of 1 exit from Extension 7600 | -8/Materials | Repaired Arm. Treads 7724 | -8/Materials | Learned Factory scanalyzer intel 7757 | -8/Materials | Learned location of 1 exit from Lower Caves 7793 | -8/Materials | Learned 2 Lower Caves zone layouts 7817 | -8/Materials | Learned 4 Recycling zone layouts 7853 | -8/Materials | Learned 2 Lower Caves zone layouts 7899 | -8/Materials | Learned Factory emergency access door positions 7957 | -8/Materials | Learned Storage emergency access door positions 8010 | -8/Materials | Entered Factory 8010 | -7/Factory | Evolved 2 slots: Propulsion x1, Utility x1 8012 | -7/Factory | Loaded intel: 4 scanalyzer locations 8959 | -7/Factory | Discovered new exit (range 8) 8983 | -7/Factory | Garrison activated, responded to threat 9010 | -7/Factory | Entered Lower Caves 9011 | -7/Lower Caves | Identified exit to Lower Caves 9193 | -7/Lower Caves | Learned Research garrison access intel 9193 | -7/Lower Caves | Learned Extension garrison access intel 9389 | -7/Lower Caves | Learned location of Zion (-6) 9638 | -7/Lower Caves | Attracted the attention of an 0b10 checkpoint 10175 | -7/Lower Caves | Found DCF Scrap (11 items) 10683 | -7/Lower Caves | Found Alien Artifact 10725 | -7/Lower Caves | Entered another Lower Caves area 10768 | -7/Lower Caves | Discovered new exit (range 10) 11005 | -7/Lower Caves | Acquired the password to a Derelict Tinkerer's latest research 11039 | -7/Lower Caves | Found Prototype Special Weapon 11284 | -7/Lower Caves | Discovered new exit (range 15) 11303 | -7/Lower Caves | Entered Data Miner 11303 | -7/Data Miner | Discovered new exit (range 6) 11312 | -7/Data Miner | Identified Molecular Deconstructor 11339 | -7/Data Miner | Met Data Miner 11367 | -7/Data Miner | Learned location of Section 7 (-2) 11367 | -7/Data Miner | Acquired the access code to Warlord's prototype stash 11389 | -7/Data Miner | Received God Mode back door access code from Data Miner 11425 | -7/Data Miner | Entered Proximity Caves 11439 | -6/Proximity Caves | Learned Factory interactive machine intel 11718 | -6/Proximity Caves | Spotted B-75 Beast 11888 | -6/Proximity Caves | Allies destroyed B-75 Beast 12009 | -6/Proximity Caves | Ambushed by research squad 12681 | -6/Proximity Caves | Attracted the attention of an 0b10 checkpoint 12878 | -6/Proximity Caves | Discovered new exit (range 9) 13030 | -6/Proximity Caves | Entered Factory 13030 | -6/Factory | Evolved 2 slots: Power x1, Utility x1 13031 | -6/Factory | Identified exit to Lower Caves 13031 | -6/Factory | Identified exit to Extension 13032 | -6/Factory | Loaded intel: 54 interactive machine locations 13065 | -6/Factory | Repaired Arm. Treads 13134 | -6/Factory | Spotted B-75 Beast 13448 | -6/Factory | Build established: Mutant 13831 | -6/Factory | Entered Extension 13832 | -6/Extension | Identified exit to Factory 13857 | -6/Extension | Build established: Skirmisher 13909 | -6/Extension | Rescued a captive Derelict 14008 | -6/Extension | Rescued a captive Derelict 14008 | -6/Extension | Rescued a captive Derelict 14098 | -6/Extension | Lost 3 allies 14115 | -6/Extension | Incoming investigation squad redirected 14169 | -6/Extension | Rescued a captive Derelict 14170 | -6/Extension | Rescued a captive Derelict 14587 | -6/Extension | Spotted B-75 Beast 14590 | -6/Extension | Spotted B-75 Beast 14604 | -6/Extension | Destroyed B-75 Beast 14631 | -6/Extension | Disrupted transfer network 14644 | -6/Extension | Destroyed B-75 Beast 14648 | -6/Extension | Lost 8 parts (1p3n2u2w) 14773 | -6/Extension | Rescued A7 14814 | -6/Extension | Rescued a captive Derelict 14814 | -6/Extension | Rescued a captive Derelict 14966 | -6/Extension | Rescued a captive Derelict 15130 | -6/Extension | Discovered exit to Factory (range 10) 15133 | -6/Extension | Discovered new exit (range 6) 15173 | -6/Extension | Identified exit to Cetus 15230 | -6/Extension | Entered Cetus 15230 | -6/Cetus | Accompanied by 3 allies (A7) 15235 | -6/Cetus | Acquired a Cetus Manufacturing Module code from A7 15256 | -6/Cetus | Spotted Cetus Guard 15256 | -6/Cetus | Spotted Cetus Guard 15258 | -6/Cetus | Spotted Cetus Guard 15260 | -6/Cetus | Spotted Cetus Guard 15263 | -6/Cetus | Destroyed Cetus Guard 15271 | -6/Cetus | Destroyed Cetus Guard 15271 | -6/Cetus | Allies destroyed Cetus Guard 15276 | -6/Cetus | Destroyed Cetus Guard 15289 | -6/Cetus | Build established: Gunner 15381 | -6/Cetus | Started Cetus Manufacturing Module 15406 | -6/Cetus | Manufactured an Enhanced Grunt 15411 | -6/Cetus | Escorted A7 to Cetus Mainframe 15431 | -6/Cetus | Manufactured an Enhanced Grunt 15456 | -6/Cetus | Manufactured an Enhanced Grunt 15481 | -6/Cetus | Manufactured an Enhanced Grunt 15506 | -6/Cetus | Manufactured an Enhanced Grunt 15534 | -6/Cetus | Discovered new exit (range 15) 15621 | -6/Cetus | Spotted Cetus Guard 15621 | -6/Cetus | Spotted Cetus Guard 15624 | -6/Cetus | Spotted Cetus Guard 15625 | -6/Cetus | Spotted Cetus Guard 15627 | -6/Cetus | Allies destroyed Cetus Guard 15635 | -6/Cetus | Destroyed Cetus Guard 15637 | -6/Cetus | Destroyed Cetus Guard 15642 | -6/Cetus | Allies destroyed Cetus Guard 15648 | -6/Cetus | Discovered exit to Factory (range 15) 15656 | -6/Cetus | Met Revision 17 15696 | -6/Cetus | System corruption reached 10% 15770 | -6/Cetus | Entered Archives 15770 | -6/Archives | Accompanied by 6 allies (A7) 15775 | -6/Archives | Received a hacking code to weaken MAIN.C 15778 | -6/Archives | Build established: Commander-Gunner 15858 | -6/Archives | Discovered exit to Factory (range 16) 15886 | -6/Archives | Discovered new exit (range 15) 15916 | -6/Archives | Discovered new exit (range 14) 16080 | -6/Archives | Entered Hub_04(d) 16080 | -6/Hub_04(d) | Accompanied by 5 allies 16100 | -6/Hub_04(d) | Discovered exit to Factory (range 13) 16203 | -6/Hub_04(d) | Build established: Scavenger-Gunner 16396 | -6/Hub_04(d) | Discovered exit to Factory (range 16) 16642 | -6/Hub_04(d) | Garrison activated, responded to threat 16671 | -6/Hub_04(d) | Lost 3 allies 16780 | -6/Hub_04(d) | First assault squad dispatched 16831 | -6/Hub_04(d) | Network Hub disabled 16835 | -6/Hub_04(d) | Spotted Lightning 16836 | -6/Hub_04(d) | Spotted Lightning 16836 | -6/Hub_04(d) | Spotted Lightning 16859 | -6/Hub_04(d) | Entered Factory 16859 | -5/Factory | Evolved 2 slots: Utility x2 16887 | -5/Factory | Lost 6 parts (1p1n2u2w) 17159 | -5/Factory | First assault squad dispatched 17177 | -5/Factory | Incoming assault squad redirected 17366 | -5/Factory | Discovered new exit (range 12) 17651 | -5/Factory | Identified exit to Upper Caves 17917 | -5/Factory | Entered Upper Caves 18063 | -5/Upper Caves | Learned location of Armory (-4) 18258 | -5/Upper Caves | Build established: Scavenger-Mutant 18470 | -5/Upper Caves | Encountered a Warlord checkpoint 18503 | -5/Upper Caves | Discovered new exit (range 14) 18770 | -5/Upper Caves | Identified exit to Upper Caves 18890 | -5/Upper Caves | Entered another Upper Caves area 18901 | -5/Upper Caves | Attracted the attention of an 0b10 checkpoint 19191 | -5/Upper Caves | Build established: Scavenger-Tank 19531 | -5/Upper Caves | Build established: Mutant 19732 | -5/Upper Caves | Attracted the attention of an 0b10 outpost 19797 | -5/Upper Caves | Destroyed 13 combat bots 19935 | -5/Upper Caves | Identified exit to Warlord 20107 | -5/Upper Caves | Build established: Scavenger-Tank 20675 | -5/Upper Caves | Entered Warlord 20737 | -5/Warlord | Discovered new exit (range 25) 21187 | -5/Warlord | Met Warlord 21195 | -5/Warlord | Warlord's base attacked by MAIN.C 21209 | -5/Warlord | Opened Warlord's prototype stash 21225 | -5/Warlord | Found Prototype Device 21233 | -5/Warlord | Found Prototype Hackware 21248 | -5/Warlord | Identified Ghost Barrier 21249 | -5/Warlord | Identified System Purifier 21259 | -5/Warlord | Found Prototype Reactor 21259 | -5/Warlord | Identified Vortex Chain Reactor 21448 | -5/Warlord | Warlord forces counterattacked 21539 | -5/Warlord | Spotted Striker 21542 | -5/Warlord | Spotted Striker 21571 | -5/Warlord | Spotted Executioner 21639 | -5/Warlord | Spotted Executioner 21643 | -5/Warlord | Spotted Executioner 21684 | -5/Warlord | Lost 24 allies 21720 | -5/Warlord | Spotted B-86 Titan 21752 | -5/Warlord | Lost 4 allies 21870 | -5/Warlord | Warlord base infiltrated, sounded retreat 21926 | -5/Warlord | P-70 Sage assimilated allied SZ-1UM(g) 21930 | -5/Warlord | Lost 4 allies 21997 | -5/Warlord | Spotted Executioner 22023 | -5/Warlord | Found Prototype Device 22023 | -5/Warlord | Identified Exp. Shock Absorption System 22028 | -5/Warlord | Found Prototype Device 22028 | -5/Warlord | Identified Matter Focus 22038 | -5/Warlord | Found Prototype Launcher 22068 | -5/Warlord | Identified exit to Proximity Caves 22070 | -5/Warlord | Entered Proximity Caves 22078 | -4/Proximity Caves | Learned location of Quarantine (-2) 22291 | -4/Proximity Caves | Identified Exp. Neutron Missile Launcher 22344 | -4/Proximity Caves | Attracted the attention of an 0b10 checkpoint 22378 | -4/Proximity Caves | Build established: Scavenger-Skirmisher 22580 | -4/Proximity Caves | Learned location of 1 exit from Research 22801 | -4/Proximity Caves | Lost 5 parts (1n2u2w) 22830 | -4/Proximity Caves | Core integrity fell below 50% 22842 | -4/Proximity Caves | Lost 3 allies 22978 | -4/Proximity Caves | Discovered new exit (range 3) 22980 | -4/Proximity Caves | Identified exit to Factory 23036 | -4/Proximity Caves | Build established: Scavenger-Mutant 23110 | -4/Proximity Caves | Entered Factory 23110 | -4/Factory | Evolved 2 slots: Utility x2 23111 | -4/Factory | Identified exit to Upper Caves 23224 | -4/Factory | Repaired Centrium Medium Armor Plating 23321 | -4/Factory | Repaired Coolant Network 23450 | -4/Factory | Lost 3 parts (1u2w) 23776 | -4/Factory | Fabricated Enh. Nova Cannon (x2) 23796 | -4/Factory | Spotted B-86 Titan 23887 | -4/Factory | Destroyed B-86 Titan 23903 | -4/Factory | Lost 3 parts (2n1u) 24110 | -4/Factory | First assault squad dispatched 24125 | -4/Factory | Incoming assault squad redirected 24170 | -4/Factory | Destroyed 10 combat bots 24429 | -4/Factory | Entered Upper Caves 24439 | -4/Upper Caves | Learned Research terminal intel 24465 | -4/Upper Caves | A Commander dispatched an escort 24484 | -4/Upper Caves | Learned Research trap positions 24484 | -4/Upper Caves | Learned Research security intel 24484 | -4/Upper Caves | Learned Extension terminal intel 24722 | -4/Upper Caves | Build established: Scavenger-Skirmisher 25413 | -4/Upper Caves | Discovered new exit (range 9) 25432 | -4/Upper Caves | Identified exit to Upper Caves 25530 | -4/Upper Caves | Entered another Upper Caves area 25548 | -4/Upper Caves | Learned Research garrison access intel 25559 | -4/Upper Caves | Learned Research stockpile data 25777 | -4/Upper Caves | Discovered new exit (range 4) 25782 | -4/Upper Caves | Identified exit to Research 26392 | -4/Upper Caves | Attracted the attention of an 0b10 checkpoint 26917 | -4/Upper Caves | Discovered new exit (range 15) 26981 | -4/Upper Caves | Attracted the attention of an 0b10 outpost 27023 | -4/Upper Caves | Identified exit to Zhirov 27025 | -4/Upper Caves | Entered Zhirov 27025 | -4/Zhirov | Discovered new exit (range 3) 27037 | -4/Zhirov | Identified exit to Proximity Caves 27065 | -4/Zhirov | Met Zhirov 27107 | -4/Zhirov | Learned location of Testing (-3) 27107 | -4/Zhirov | Learned location of Command (-1) 27119 | -4/Zhirov | Zhirov requested help retrieving the SGEMP Prototype 27148 | -4/Zhirov | Found Alien Artifact 27148 | -4/Zhirov | Identified Integrated Reactor 27148 | -4/Zhirov | Installed Integrated Reactor, increased core energy generation (+10) 27255 | -4/Zhirov | Found Alien Artifact 27275 | -4/Zhirov | Build established: Scavenger-Tank 27310 | -4/Zhirov | Entered Proximity Caves 28098 | -3/Proximity Caves | Discovered exit to Research (range 12) 28110 | -3/Proximity Caves | Attracted the attention of an 0b10 checkpoint 28111 | -3/Proximity Caves | Entered Research 28111 | -3/Research | Evolved 2 slots: Propulsion x2 28112 | -3/Research | Identified exit to Research 28113 | -3/Research | Loaded intel: 105 trap records 28116 | -3/Research | Loaded intel: 22 terminal locations 28117 | -3/Research | Loaded intel: 4 garrison access locations 28157 | -3/Research | Found Prototype Processor 28157 | -3/Research | Identified Exp. Signal Interpreter 28175 | -3/Research | Spotted B-86 Titan 28311 | -3/Research | Revision forces began assault on 0b10 28405 | -3/Research | Met up with Revision 17++ 28811 | -3/Research | Research terminal network offline 28825 | -3/Research | Discovered exit to Research (range 16) 29051 | -3/Research | Build established: Scavenger-Skirmisher 29575 | -3/Research | Entered another Research area 29575 | -2/Research | Warlord forces began assault on 0b10 29575 | -2/Research | Evolved 2 slots: Utility x1, Weapon x1 29576 | -2/Research | Loaded intel: 3 garrison access locations 29685 | -2/Research | Research machine network offline 29698 | -2/Research | Spotted B-90 Cyclops 29730 | -2/Research | Fabricated Biometal Heavy Treads? 29764 | -2/Research | Found Prototype Launcher 29764 | -2/Research | Identified Point Singularity Launcher 29770 | -2/Research | Found Point Singularity Launcher 30089 | -2/Research | Met up with Warlord 30146 | -2/Research | Borebot progress halted 30250 | -2/Research | Lost 3 allies 30264 | -2/Research | Borebot progress halted 30367 | -2/Research | Build established: Hacker-Skirmisher 30557 | -2/Research | Discovered new exit (range 13) 30601 | -2/Research | Identified exit to Access 30819 | -2/Research | Spotted Striker 30825 | -2/Research | Spotted Striker 30826 | -2/Research | Spotted Executioner 30846 | -2/Research | Destroyed Executioner 30857 | -2/Research | Destroyed Striker 30866 | -2/Research | Destroyed Striker 30871 | -2/Research | Lost 6 allies 30886 | -2/Research | Found Prototype Processor 30886 | -2/Research | Identified Exp. Core Analyzer 30892 | -2/Research | Destroyed 7 combat bots 30930 | -2/Research | Spotted Striker 30934 | -2/Research | Spotted Striker 30935 | -2/Research | Destroyed Striker 30944 | -2/Research | Spotted Executioner 30945 | -2/Research | Destroyed Striker 30946 | -2/Research | Spotted Executioner 30955 | -2/Research | Destroyed Executioner 30964 | -2/Research | Destroyed Executioner 30994 | -2/Research | Destroyed 9 combat bots 31035 | -2/Research | Discovered new exit (range 15) 31051 | -2/Research | Identified exit to Quarantine 31052 | -2/Research | Entered Quarantine 31059 | -2/Quarantine | Cryocooling Duct disabled 31072 | -2/Quarantine | Found Alien Artifact 31074 | -2/Quarantine | Ambient heat levels rising (+20) 31074 | -2/Quarantine | Non-combat units ordered to evacuate 31074 | -2/Quarantine | Garrison activated, responded to threat 31133 | -2/Quarantine | Found Alien Artifact 31271 | -2/Quarantine | Build established: Scavenger-Tank 31332 | -2/Quarantine | Found Alien Artifact 31332 | -2/Quarantine | Identified Phase Redirector 31338 | -2/Quarantine | First assault squad dispatched 31428 | -2/Quarantine | Destroyed 11 combat bots 31585 | -2/Quarantine | Found Alien Slashing Weapon 31585 | -2/Quarantine | Identified Sigix Broadsword 31769 | -2/Quarantine | Discovered exit to Access (range 14) 31820 | -2/Quarantine | Entered Access 31820 | -1/Access | Evolved 2 slots: Power x1, Utility x1 32060 | -1/Access | Lost 3 allies 32429 | -1/Access | Build established: Scavenger-Mutant 32446 | -1/Access | Destroyed 7 combat bots 32518 | -1/Access | Garrison activated, responded to threat 32592 | -1/Access | Discovered new exit (range 11) 32603 | -1/Access | First assault squad dispatched 32609 | -1/Access | Incoming investigation squad redirected 32632 | -1/Access | Incoming assault squad redirected 32666 | -1/Access | Lost 3 parts (2u1w) 32701 | -1/Access | Destroyed 8 combat bots 32839 | -1/Access | System corruption reached 10% 32883 | -1/Access | Identified Terrabomb 32883 | -1/Access | Used Terrabomb 32903 | -1/Access | Identified exit to Surface 32904 | -1/Access | Identified Dimensional Node Initializer 32904 | -1/Access | Initialized slip node 33166 | -1/Access | Destroyed 8 combat bots 33336 | -1/Access | Incoming assault squad redirected 33341 | -1/Access | Incoming assault squad redirected 33372 | -1/Access | Incoming assault squad redirected 33490 | -1/Access | Identified Transdimensional Reconstructor 33490 | -1/Access | Warped through subspace to slip node 33511 | -1/Access | Identified Subatomic Replicator 33511 | -1/Access | Used Subatomic Replicator to replicate Exp. Neutron Missile Launcher 33526 | *** | Escaped! Last Messages --------------- 33478_ The unstable cave ceiling collapses. 33478_ K-01 Serf collects debris. 33478_ U-05 Engineer lays Concrete. 33480_ U-05 Engineer builds a Wall. 33482_ K-01 Serf collects debris. 33486_ U-05 Engineer lays Concrete. 33486_ K-01 Serf collects debris. 33487_ U-05 Engineer lays Concrete. 33487_ U-05 Engineer builds a Wall. 33488_ U-05 Engineer lays Concrete. 33489_ U-05 Engineer builds a Wall. 33490_ Identified Transdimensional Reconstructor. 33490_ Warped through subspace, drawn to slip node. 33511_ Dropped Exp. Neutron Missile Launcher. 33511_ Identified Subatomic Replicator. 33511_ Replicated Exp. Neutron Missile Launcher. 33512_ Dropped Enh. Quantum Rifle. 33513_ Acquired Exp. Neutron Missile Launcher. 33515_ Dropped Enh. Nova Cannon. 33516_ Acquired Exp. Neutron Missile Launcher. Map ----- +----------------------------------------------------+ | ?????????????????????????????????????????????????? | | ?????????????????????????????????????????????????? | | ?????????????????????????????????????????????????? | | ?????????????????????????????????????????????????? | | ?????????????????????????????????????????????????? | | ??????????????????"??????????????????????????????? | | ?????????????????"""?????????????????????????????? | | ????????????????"""??????????????????????????????? | | ?????????????????"???????????????????????????????? | | "????????????????????????????????????????????????? | | "?????????????????????????????????????????????"??? | | "???????????????????????????????????????????""""?? | | "????????????????????????????????????#?????"""""?? | | "??????????????????????????????????? ????"""""? | | "????????????????????BB????BB?????? ?? ?""""?? | | ?????????????????????BB????BB????? #??? " ?? | | ??????????????????????????????#### ?????? | | ????????????????####??????????# ## ""????? ? ?? | | ????????#########" ""????????"" # ""# ? ??? | | #??????# " ""????????"" # ""#?? ? ? | | ######## " """"????"""" # !!########## | | # " " " ???? " # ! "# | | %= + """ " " """""" " # ""# | | "##### # """" " " " " # " = | | ##???# # " # " " "" " " # # = =% | | ?????# # # " " [@ " " # #*= ! | | ?????#%# # " " <]" " ###"#+##% %=[ | | ######"########### " """ "" "# # !###+###### | | ! # " " # % | | * # "" "" # u% = | | # """""""""""""" # A###+###### | | # """" #" ## ## | | # """ # # ## | | # """ # #% ## | | % # T C# *# # ?? | | " " | | ! #| # # # ####"##### | | ###################" !!* = # ##### # " | | %%%!|%=!!! % | =*!=*! * # " !!! | | % !=%[%[=! u u*=%===== # " !!! | | ##############+" ##! [##### ###### # # !!! | | ## !# # [ ! u## # = ! # *% # # | | # # # ! # #*#! # " | | ### ## # " # # # # | | ### # #" """ ############ # ### * | | ?####### """ # * # # ########### | | ???????# " ="# # ## ###??#?##?# | | ???????# "# " ######## ####?####? | | ???????# "# """ + T" ###??####? | | ???????###"#+##"""# """ ^# " ##???##?## | +----------------------------------------------------+ Best States ------------- Heat Dissipation 142 Energy Generation 75 Energy Capacity 840 Matter Stores 300 Matter Capacity 300 Sight Range 16 Robot Scan Range 19 Terrain Scan Range 16 Terrain Scan Density 210 Cloak Strength 2 Base Temperature (-) 200 EM Shielding 2 Armor Coverage 600 Resistance: KI 25 Resistance: TH 30 Resistance: EM 25 Weapon Shielding 90 Point Defense Rating 160 Weapon Cycling 15 Evasion (%) 67 Targeting Accuracy 8 Core Analysis 8 Recoil Reduction 4 Offensive Hacking 24 Defensive Hacking 20 Authchip Count 1 Item Schematics ----------------- Huge Storage Unit | -10/Materials | Hacked Imp. Utility Shielding | -8/Materials | Hacked Combat Drone Bay | -7/Data Miner | Free Lgt. Regenerative Plating | -7/Data Miner | Free Biomechanical Wings | -7/Data Miner | Free Exp. Targeting Computer | -7/Data Miner | Free Imp. Heavy Machine Gun | -7/Data Miner | Free Hvy. Treads | -7/Data Miner | Free Adv. Salvage Targeting Computer | -7/Data Miner | Free Imp. Plasma Cutter | -7/Data Miner | Free Imp. Heavy Siege Treads | -5/Factory | Hacked Lrn. Sensor Array | -4/Factory | Hacked Assault Drone Bay | -4/Zhirov | Free Exp. Heat Sink | -4/Zhirov | Free Exp. Optical Array | -4/Zhirov | Free Imp. Arc Thrower | -4/Zhirov | Free Robot Schematics ------------------ A-15 Conveyor | -7/Data Miner | Free D-53 Grenadier | -7/Data Miner | Free O-24 Administrator | -7/Data Miner | Free W-25 Informer | -7/Data Miner | Free E-15 Imp | -7/Data Miner | Free G-50 Soldier | -7/Data Miner | Free Fabricated ------------ Enh. Nova Cannon | x2 | -4/Factory | Preloaded Biometal Heavy Treads | x1 | -2/Research | Preloaded Alien Tech Used ----------------- Integrated Reactor Phase Redirector Sigix Broadsword Terrabomb Dimensional Node Initializer Transdimensional Reconstructor Subatomic Replicator Achievements -------------- None Challenges ------------ None Game ------ Seed PointSystemScreen Manual? 0 Play Time 06:01:47 Cumulative 251.8 hours Start 2024.10.05 @ 10:37:27 End 2024.10.06 @ 20:58:40 Sessions 9 Manual Loads 0 Difficulty Rogue Special Mode None Game No. 113 Rogue 113 Adventurer 0 Explorer 0 Win Type 0 Total 9 Types 6/0/2/1/0/0/0/0/0 Lore% 73 Gallery% 72 Achievement% 63 Wizard Run 0 Options --------- Layout 0 ASCII 0 Keyboard 0 Movement Numpad Keybinds 0 Fullscreen 2 Font 18/SmallcapsGlow Map View 76x50 Zoom Use 0% Tactical HUD 1 Map Filters NONE Filters NONE Steam 1 RUN: db8b7161-c2f4-4b84-8588-c38e85e0470f